[Event "Early-Titled-Tuesday-Blitz-February-27-2024"]
[Site "Chess.com"]
[Date "2024.02.27"]
[Round "1"]
[White "dropstoneDP"]
[Black "Rawnsdale"]
[Result "1-0"]
[WhiteElo "3038"]
[BlackElo "2531"]
[TimeControl "180+1"]
[EndTime "8:05:52 PST"]
[Termination "dropstoneDP won by resignation"]

1. e4 {[%clk 0:03:00.9]} 1... c6 {[%clk 0:02:58.8]} 2. d4 {[%clk 0:02:55.1]}
2... d5 {[%clk 0:02:59.7]} 3. exd5 {[%clk 0:02:53]} 3... cxd5 {[%clk 0:03:00.6]}
4. Bd3 {[%clk 0:02:52.3]} 4... Nc6 {[%clk 0:02:59.7]} 5. c3 {[%clk 0:02:52.9]}
5... Nf6 {[%clk 0:02:59.7]} 6. Bf4 {[%clk 0:02:49.7]} 6... g6 {[%clk 0:02:57.2]}
7. h3 {[%clk 0:02:49]} 7... Bg7 {[%clk 0:02:57.2]} 8. Nf3 {[%clk 0:02:49]} 8...
O-O {[%clk 0:02:57.3]} 9. Nbd2 {[%clk 0:02:48.1]} 9... Nh5 {[%clk 0:02:57.4]}
10. Bh2 {[%clk 0:02:47.7]} 10... Bh6 {[%clk 0:02:57.8]} 11. O-O {[%clk
0:02:45.5]} 11... Re8 {[%clk 0:02:53.2]} 12. Re1 {[%clk 0:02:45.1]} 12... Nf4
{[%clk 0:02:53.2]} 13. Nf1 {[%clk 0:02:42.8]} 13... Nxd3 {[%clk 0:02:49]} 14.
Qxd3 {[%clk 0:02:43.7]} 14... Bf5 {[%clk 0:02:49]} 15. Qe2 {[%clk 0:02:42.7]}
15... Qd7 {[%clk 0:02:27.6]} 16. Ne3 {[%clk 0:02:40.1]} 16... Rac8 {[%clk
0:02:15]} 17. Rad1 {[%clk 0:02:38.7]} 17... Bg7 {[%clk 0:02:00.2]} 18. Nxf5
{[%clk 0:02:38.1]} 18... Qxf5 {[%clk 0:01:59.8]} 19. Be5 {[%clk 0:02:26.5]}
19... Nxe5 {[%clk 0:01:55.3]} 20. dxe5 {[%clk 0:02:24.3]} 20... e6 {[%clk
0:01:31.8]} 21. g4 {[%clk 0:02:23.1]} 21... Qe4 {[%clk 0:01:17.2]} 22. Qxe4
{[%clk 0:02:21.1]} 22... dxe4 {[%clk 0:01:18.1]} 23. Rxe4 {[%clk 0:02:21.6]}
23... Re7 {[%clk 0:01:12.4]} 24. Red4 {[%clk 0:02:20.6]} 24... h6 {[%clk
0:01:03.2]} 25. Rd8+ {[%clk 0:02:18.4]} 25... Rxd8 {[%clk 0:01:02.6]} 26. Rxd8+
{[%clk 0:02:19.3]} 26... Kh7 {[%clk 0:01:03.4]} 27. c4 {[%clk 0:02:15.5]} 27...
Rc7 {[%clk 0:01:03.1]} 28. b3 {[%clk 0:02:15.4]} 28... g5 {[%clk 0:01:00.7]} 29.
Kf1 {[%clk 0:02:13.9]} 29... Kg6 {[%clk 0:01:01.1]} 30. Ke2 {[%clk 0:02:13.5]}
30... h5 {[%clk 0:00:59.6]} 31. Kd3 {[%clk 0:02:13]} 31... hxg4 {[%clk
0:00:59.1]} 32. hxg4 {[%clk 0:02:13.9]} 32... a6 {[%clk 0:00:58.7]} 33. a4
{[%clk 0:02:13.2]} 33... f6 {[%clk 0:00:55.4]} 34. Rd6 {[%clk 0:02:10.4]} 34...
Kf7 {[%clk 0:00:42.5]} 35. exf6 {[%clk 0:02:08]} 35... Bxf6 {[%clk 0:00:43.4]}
36. Ke4 {[%clk 0:02:08.2]} 36... Ke7 {[%clk 0:00:39.5]} 37. Rb6 {[%clk
0:02:05.3]} 37... a5 {[%clk 0:00:19.9]} 38. Nd4 {[%clk 0:02:04.5]} 38... Bxd4
{[%clk 0:00:16.8]} 39. Kxd4 {[%clk 0:02:05.4]} 39... Kf6 {[%clk 0:00:16.5]} 40.
Rb5 {[%clk 0:02:04.6]} 40... Re7 {[%clk 0:00:15.7]} 41. Rxa5 {[%clk 0:02:04.1]}
41... Rd7+ {[%clk 0:00:16.2]} 42. Ke3 {[%clk 0:02:04.3]} 42... Rd6 {[%clk
0:00:14.4]} 43. Rb5 {[%clk 0:02:04.4]} 43... b6 {[%clk 0:00:14.7]} 44. f3 {[%clk
0:02:05]} 44... Ke7 {[%clk 0:00:14.2]} 45. Rxg5 {[%clk 0:02:04.4]} 45... Rd1
{[%clk 0:00:14.2]} 46. Rb5 {[%clk 0:02:04.8]} 46... Rd6 {[%clk 0:00:12.9]} 47.
Ke4 {[%clk 0:02:05.1]} 47... Kf6 {[%clk 0:00:13]} 48. f4 {[%clk 0:02:05.6]}
48... Rd1 {[%clk 0:00:13.1]} 49. g5+ {[%clk 0:02:06.5]} 49... Kg6 {[%clk
0:00:13.4]} 50. Rxb6 {[%clk 0:02:06.9]} 50... Re1+ {[%clk 0:00:13.8]} 51. Kf3
{[%clk 0:02:07.4]} 51... Kf5 {[%clk 0:00:14.7]} 52. Rb5+ {[%clk 0:02:07.7]}
52... Kg6 {[%clk 0:00:15.1]} 53. Re5 {[%clk 0:02:08.3]} 1-0

[Event "Early-Titled-Tuesday-Blitz-February-27-2024"]
[Site "Chess.com"]
[Date "2024.02.27"]
[Round "1"]
[White "vladgoncharov"]
[Black "Iunusovnuriddin"]
[Result "1-0"]
[WhiteElo "2657"]
[BlackElo "2355"]
[TimeControl "180+1"]
[EndTime "8:05:52 PST"]
[Termination "vladgoncharov won by resignation"]

1. d4 {[%clk 0:03:00.1]} 1... d6 {[%clk 0:02:50.3]} 2. e4 {[%clk 0:02:58.7]}
2... Nf6 {[%clk 0:02:49.3]} 3. Nc3 {[%clk 0:02:57.8]} 3... Nbd7 {[%clk
0:02:49.3]} 4. Nf3 {[%clk 0:02:53.3]} 4... e5 {[%clk 0:02:48.6]} 5. Be2 {[%clk
0:02:40.9]} 5... Be7 {[%clk 0:02:48.1]} 6. O-O {[%clk 0:02:40.3]} 6... O-O
{[%clk 0:02:47.9]} 7. b3 {[%clk 0:02:32.8]} 7... Re8 {[%clk 0:02:40.4]} 8. Bb2
{[%clk 0:02:31.3]} 8... Bf8 {[%clk 0:02:39.8]} 9. Bd3 {[%clk 0:02:26.4]} 9... c6
{[%clk 0:02:39.4]} 10. Re1 {[%clk 0:02:23.3]} 10... b5 {[%clk 0:02:37]} 11. a4
{[%clk 0:02:11.1]} 11... b4 {[%clk 0:02:36.4]} 12. Ne2 {[%clk 0:02:10.7]} 12...
a5 {[%clk 0:02:35.1]} 13. Ng3 {[%clk 0:02:09.5]} 13... g6 {[%clk 0:02:34.3]} 14.
Bc4 {[%clk 0:01:53.7]} 14... h6 {[%clk 0:01:58]} 15. dxe5 {[%clk 0:01:50.4]}
15... dxe5 {[%clk 0:01:50.1]} 16. Nxe5 {[%clk 0:01:49.5]} 16... Nxe5 {[%clk
0:01:46.1]} 17. Qxd8 {[%clk 0:01:48.3]} 17... Rxd8 {[%clk 0:01:46.1]} 18. Bxe5
{[%clk 0:01:47.7]} 18... Bg7 {[%clk 0:01:45.6]} 19. Rad1 {[%clk 0:01:38.1]}
19... Re8 {[%clk 0:01:25.4]} 20. Bc7 {[%clk 0:01:26.8]} 20... Nd7 {[%clk
0:01:18.6]} 21. f4 {[%clk 0:01:17.6]} 21... Bc3 {[%clk 0:01:12]} 22. Rf1 {[%clk
0:01:08.2]} 22... Nc5 {[%clk 0:01:11.6]} 23. e5 {[%clk 0:01:02.6]} 23... Bg4
{[%clk 0:01:11.3]} 24. Rd6 {[%clk 0:00:49]} 24... Rac8 {[%clk 0:00:44.6]} 25.
Rxg6+ {[%clk 0:00:43.8]} 1-0

[Event "Early-Titled-Tuesday-Blitz-February-27-2024"]
[Site "Chess.com"]
[Date "2024.02.27"]
[Round "1"]
[White "OneTrickPony_82"]
[Black "Tactrics"]
[Result "1-0"]
[WhiteElo "2531"]
[BlackElo "2932"]
[TimeControl "180+1"]
[EndTime "8:05:57 PST"]
[Termination "OneTrickPony_82 won by resignation"]

1. d4 {[%clk 0:03:00.9]} 1... Nf6 {[%clk 0:02:59.6]} 2. c4 {[%clk 0:02:59.3]}
2... e6 {[%clk 0:03:00.2]} 3. Nf3 {[%clk 0:02:59.4]} 3... Bb4+ {[%clk
0:03:00.6]} 4. Bd2 {[%clk 0:02:59.1]} 4... Qe7 {[%clk 0:03:00.5]} 5. g3 {[%clk
0:02:58.8]} 5... Nc6 {[%clk 0:03:00.7]} 6. Bg2 {[%clk 0:02:59]} 6... Bxd2+
{[%clk 0:03:01]} 7. Qxd2 {[%clk 0:02:59]} 7... Ne4 {[%clk 0:03:00.8]} 8. Qc2
{[%clk 0:02:59.6]} 8... Qb4+ {[%clk 0:03:00.9]} 9. Kf1 {[%clk 0:03:00.2]} 9...
d5 {[%clk 0:03:00.8]} 10. e3 {[%clk 0:02:58.9]} 10... Qxc4+ {[%clk 0:02:57.4]}
11. Qxc4 {[%clk 0:02:58]} 11... dxc4 {[%clk 0:02:58.3]} 12. Nbd2 {[%clk
0:02:50.5]} 12... Nd6 {[%clk 0:02:50.3]} 13. Ne5 {[%clk 0:02:50.2]} 13... Na5
{[%clk 0:02:48.6]} 14. b4 {[%clk 0:02:38.2]} 14... c3 {[%clk 0:02:31.9]} 15.
bxa5 {[%clk 0:02:23.6]} 15... cxd2 {[%clk 0:02:31.7]} 16. Ke2 {[%clk 0:02:23.9]}
16... f6 {[%clk 0:02:30.1]} 17. Nf3 {[%clk 0:02:00.1]} 17... Bd7 {[%clk
0:02:19.5]} 18. Nxd2 {[%clk 0:01:31.1]} 18... Bb5+ {[%clk 0:02:15.8]} 19. Kd1
{[%clk 0:01:29.3]} 19... O-O-O {[%clk 0:02:10.5]} 20. Kc2 {[%clk 0:01:26]} 20...
e5 {[%clk 0:02:03.2]} 21. a4 {[%clk 0:01:21.7]} 21... Ba6 {[%clk 0:02:02.2]} 22.
dxe5 {[%clk 0:01:19.6]} 22... fxe5 {[%clk 0:02:00.9]} 23. Nb3 {[%clk 0:01:14.1]}
23... Rhf8 {[%clk 0:02:00.1]} 24. f4 {[%clk 0:01:12]} 24... Nc4 {[%clk
0:01:43.4]} 25. Rhe1 {[%clk 0:01:03.3]} 25... Kb8 {[%clk 0:01:42.9]} 26. Kc3
{[%clk 0:00:56.6]} 26... g5 {[%clk 0:00:51.7]} 27. Nc5 {[%clk 0:00:55.8]} 27...
Nxa5 {[%clk 0:00:49.8]} 28. Nxa6+ {[%clk 0:00:55.6]} 28... bxa6 {[%clk
0:00:43.8]} 29. Rab1+ {[%clk 0:00:55.6]} 29... Kc8 {[%clk 0:00:43.6]} 30. Bh3+
{[%clk 0:00:55.5]} 30... Rd7 {[%clk 0:00:42.1]} 31. Red1 {[%clk 0:00:50.1]}
31... Rf7 {[%clk 0:00:38.5]} 32. Rxd7 {[%clk 0:00:49.2]} 32... Rxd7 {[%clk
0:00:39.4]} 33. Rd1 {[%clk 0:00:48.2]} 1-0

[Event "Early-Titled-Tuesday-Blitz-February-27-2024"]
[Site "Chess.com"]
[Date "2024.02.27"]
[Round "1"]
[White "wonderfultime"]
[Black "Lovetov"]
[Result "1-0"]
[WhiteElo "3082"]
[BlackElo "2535"]
[TimeControl "180+1"]
[EndTime "8:05:58 PST"]
[Termination "wonderfultime won by resignation"]

1. d4 {[%clk 0:03:00.1]} 1... Nf6 {[%clk 0:03:00]} 2. Nf3 {[%clk 0:02:59.8]}
2... g6 {[%clk 0:02:59.4]} 3. c4 {[%clk 0:02:59]} 3... Bg7 {[%clk 0:02:59.7]} 4.
g3 {[%clk 0:02:59.4]} 4... O-O {[%clk 0:02:55.4]} 5. Bg2 {[%clk 0:02:59.9]} 5...
c6 {[%clk 0:02:55.8]} 6. O-O {[%clk 0:02:59.8]} 6... d5 {[%clk 0:02:56]} 7. b3
{[%clk 0:03:00.4]} 7... Ne4 {[%clk 0:02:42.2]} 8. Bb2 {[%clk 0:02:59.4]} 8... a5
{[%clk 0:02:37.9]} 9. Nc3 {[%clk 0:02:57.2]} 9... Nxc3 {[%clk 0:02:36.8]} 10.
Bxc3 {[%clk 0:02:58.1]} 10... a4 {[%clk 0:02:36.7]} 11. e3 {[%clk 0:02:44.7]}
11... Bf5 {[%clk 0:02:23.7]} 12. cxd5 {[%clk 0:02:32.3]} 12... cxd5 {[%clk
0:02:17.3]} 13. bxa4 {[%clk 0:02:32.6]} 13... Qd7 {[%clk 0:02:10.4]} 14. Ne5
{[%clk 0:02:22.2]} 14... Bxe5 {[%clk 0:01:14.5]} 15. dxe5 {[%clk 0:02:23.1]}
15... Rd8 {[%clk 0:01:15]} 16. Qb3 {[%clk 0:02:00.6]} 16... Be6 {[%clk
0:00:58.4]} 17. Bd4 {[%clk 0:01:52.6]} 17... Rxa4 {[%clk 0:00:48.5]} 18. Rab1
{[%clk 0:01:47.3]} 18... Na6 {[%clk 0:00:37.1]} 19. Rfc1 {[%clk 0:01:39.6]}
19... Rb4 {[%clk 0:00:35.1]} 20. Qa3 {[%clk 0:01:39.9]} 20... Rxb1 {[%clk
0:00:31.2]} 21. Rxb1 {[%clk 0:01:40.8]} 21... Rc8 {[%clk 0:00:25.2]} 22. h4
{[%clk 0:01:35.4]} 22... Rc4 {[%clk 0:00:21.6]} 23. Rb6 {[%clk 0:01:29.9]} 23...
Rc6 {[%clk 0:00:17.9]} 24. Rxc6 {[%clk 0:01:15.1]} 24... Qxc6 {[%clk 0:00:13.9]}
25. Qxe7 {[%clk 0:01:15.7]} 25... Qc1+ {[%clk 0:00:09.7]} 26. Kh2 {[%clk
0:01:15.5]} 26... Qb2 {[%clk 0:00:10.4]} 27. Bxb2 {[%clk 0:01:15]} 1-0

[Event "Early-Titled-Tuesday-Blitz-February-27-2024"]
[Site "Chess.com"]
[Date "2024.02.27"]
[Round "1"]
[White "krucki03"]
[Black "akinov-akinseye"]
[Result "1-0"]
[WhiteElo "2545"]
[BlackElo "1918"]
[TimeControl "180+1"]
[EndTime "8:06:03 PST"]
[Termination "krucki03 won by resignation"]

1. d4 {[%clk 0:03:00.1]} 1... d5 {[%clk 0:02:59]} 2. Nf3 {[%clk 0:02:58.1]} 2...
Nf6 {[%clk 0:02:54.9]} 3. Bf4 {[%clk 0:02:57.5]} 3... g6 {[%clk 0:02:54.1]} 4.
h3 {[%clk 0:02:51.9]} 4... Bg7 {[%clk 0:02:53.1]} 5. e3 {[%clk 0:02:49.8]} 5...
c6 {[%clk 0:02:52]} 6. Bd3 {[%clk 0:02:50]} 6... O-O {[%clk 0:02:46.3]} 7. O-O
{[%clk 0:02:46.9]} 7... e6 {[%clk 0:02:46.2]} 8. c4 {[%clk 0:02:34.4]} 8... dxc4
{[%clk 0:02:43.2]} 9. Bxc4 {[%clk 0:02:35.3]} 9... Nbd7 {[%clk 0:02:43.3]} 10.
Nc3 {[%clk 0:02:31.7]} 10... Nb6 {[%clk 0:02:42.2]} 11. Bb3 {[%clk 0:02:31.4]}
11... Nbd5 {[%clk 0:02:40.4]} 12. Bh2 {[%clk 0:02:28.1]} 12... Nxc3 {[%clk
0:02:38.9]} 13. bxc3 {[%clk 0:02:26]} 13... Qa5 {[%clk 0:02:39.1]} 14. Qd3
{[%clk 0:02:24.6]} 14... Nd7 {[%clk 0:02:35.1]} 15. e4 {[%clk 0:02:23.1]} 15...
e5 {[%clk 0:02:26.4]} 16. d5 {[%clk 0:02:17.1]} 16... Nc5 {[%clk 0:02:24.7]} 17.
Qc2 {[%clk 0:02:14.7]} 17... cxd5 {[%clk 0:02:22.7]} 18. exd5 {[%clk 0:02:14.4]}
18... Bf5 {[%clk 0:02:20]} 19. Qb2 {[%clk 0:01:52.9]} 19... Rad8 {[%clk
0:02:16.3]} 20. Rad1 {[%clk 0:01:48.4]} 20... Nxb3 {[%clk 0:02:07.1]} 21. Qxb3
{[%clk 0:01:38.8]} 21... Rfe8 {[%clk 0:02:05.5]} 22. c4 {[%clk 0:01:37.3]} 22...
b6 {[%clk 0:02:01.9]} 23. Rfe1 {[%clk 0:01:35.3]} 23... e4 {[%clk 0:01:52.7]}
24. Nd4 {[%clk 0:01:34.7]} 24... Qc5 {[%clk 0:01:47.6]} 25. Nxf5 {[%clk
0:01:31.9]} 25... gxf5 {[%clk 0:01:47.2]} 26. Bf4 {[%clk 0:01:20.1]} 26... Kh8
{[%clk 0:01:43.7]} 27. d6 {[%clk 0:01:11.6]} 27... Rg8 {[%clk 0:01:40]} 28. Rd5
{[%clk 0:01:09.8]} 28... Qc6 {[%clk 0:01:33.4]} 29. Qb5 {[%clk 0:01:05.3]} 29...
Qxb5 {[%clk 0:01:32.7]} 30. cxb5 {[%clk 0:01:06.2]} 30... Bc3 {[%clk 0:01:07]}
31. Rc1 {[%clk 0:00:59.2]} 31... Bb4 {[%clk 0:00:59]} 32. Rc7 {[%clk 0:00:54.5]}
1-0

[Event "Early-Titled-Tuesday-Blitz-February-27-2024"]
[Site "Chess.com"]
[Date "2024.02.27"]
[Round "1"]
[White "Logman74"]
[Black "GMKrikor"]
[Result "0-1"]
[WhiteElo "2511"]
[BlackElo "2933"]
[TimeControl "180+1"]
[EndTime "8:06:04 PST"]
[Termination "GMKrikor won by resignation"]

1. e4 {[%clk 0:02:58.5]} 1... c5 {[%clk 0:02:59.6]} 2. Nf3 {[%clk 0:02:57.3]}
2... Nc6 {[%clk 0:02:59.5]} 3. Bb5 {[%clk 0:02:53.4]} 3... Nf6 {[%clk
0:02:58.7]} 4. Bxc6 {[%clk 0:02:49.9]} 4... dxc6 {[%clk 0:02:57.8]} 5. d3 {[%clk
0:02:50]} 5... Bg4 {[%clk 0:02:57.9]} 6. h3 {[%clk 0:02:49.4]} 6... Bh5 {[%clk
0:02:57.8]} 7. O-O {[%clk 0:02:48.4]} 7... Nd7 {[%clk 0:02:57.4]} 8. Bf4 {[%clk
0:02:46]} 8... f6 {[%clk 0:02:51.9]} 9. Nbd2 {[%clk 0:02:41.9]} 9... e5 {[%clk
0:02:51.3]} 10. Be3 {[%clk 0:02:39.7]} 10... Be7 {[%clk 0:02:48.9]} 11. b3
{[%clk 0:02:40.1]} 11... Nf8 {[%clk 0:02:46.4]} 12. a4 {[%clk 0:02:40.7]} 12...
a5 {[%clk 0:02:45.5]} 13. Nc4 {[%clk 0:02:39.5]} 13... Ne6 {[%clk 0:02:42.9]}
14. g4 {[%clk 0:02:38.2]} 14... Bf7 {[%clk 0:02:41]} 15. Nh4 {[%clk 0:02:38.6]}
15... g6 {[%clk 0:02:32.2]} 16. Ng2 {[%clk 0:02:33.2]} 16... g5 {[%clk
0:02:22.9]} 17. h4 {[%clk 0:02:22]} 17... b5 {[%clk 0:01:19.4]} 18. Nd2 {[%clk
0:02:07.3]} 18... h5 {[%clk 0:01:17.7]} 19. hxg5 {[%clk 0:02:05.9]} 19... fxg5
{[%clk 0:01:17.9]} 20. axb5 {[%clk 0:01:56.9]} 20... cxb5 {[%clk 0:01:17.9]} 21.
f3 {[%clk 0:01:38.3]} 21... Nf4 {[%clk 0:01:13.5]} 22. Nxf4 {[%clk 0:01:29.2]}
22... gxf4 {[%clk 0:01:11.5]} 23. Bf2 {[%clk 0:01:29.5]} 23... Be6 {[%clk
0:01:07.9]} 24. g5 {[%clk 0:01:10.1]} 24... Rg8 {[%clk 0:01:06.6]} 25. Kh2
{[%clk 0:01:08.6]} 25... Bxg5 {[%clk 0:01:05.6]} 26. Bxc5 {[%clk 0:01:07.4]}
26... Bh4 {[%clk 0:01:00.7]} 27. Rg1 {[%clk 0:00:59.7]} 27... Bg3+ {[%clk
0:01:00.4]} 28. Kg2 {[%clk 0:00:57.8]} 28... Qh4 {[%clk 0:00:46.3]} 29. Kf1
{[%clk 0:00:55.1]} 29... Qh2 {[%clk 0:00:43.5]} 0-1

[Event "Early-Titled-Tuesday-Blitz-February-27-2024"]
[Site "Chess.com"]
[Date "2024.02.27"]
[Round "1"]
[White "N18player"]
[Black "vi_pranav"]
[Result "0-1"]
[WhiteElo "2536"]
[BlackElo "3106"]
[TimeControl "180+1"]
[EndTime "8:06:06 PST"]
[Termination "vi_pranav won by resignation"]

1. Nf3 {[%clk 0:03:00.9]} 1... Nf6 {[%clk 0:02:54.9]} 2. b3 {[%clk 0:03:00.5]}
2... d6 {[%clk 0:02:53.7]} 3. Bb2 {[%clk 0:03:01.1]} 3... e5 {[%clk 0:02:53.7]}
4. d4 {[%clk 0:02:59.7]} 4... e4 {[%clk 0:02:53.7]} 5. Nfd2 {[%clk 0:02:59.9]}
5... d5 {[%clk 0:02:54.3]} 6. c4 {[%clk 0:02:59.7]} 6... c6 {[%clk 0:02:55]} 7.
e3 {[%clk 0:02:57.8]} 7... Bd6 {[%clk 0:02:55.2]} 8. Ba3 {[%clk 0:02:54.3]} 8...
Bxa3 {[%clk 0:02:49.5]} 9. Nxa3 {[%clk 0:02:54.1]} 9... O-O {[%clk 0:02:50.2]}
10. f3 {[%clk 0:02:48.5]} 10... exf3 {[%clk 0:02:36.7]} 11. gxf3 {[%clk
0:02:47.4]} 11... Re8 {[%clk 0:02:28.9]} 12. Nc2 {[%clk 0:02:43.2]} 12... Nh5
{[%clk 0:02:24.4]} 13. Qe2 {[%clk 0:02:39.4]} 13... Bf5 {[%clk 0:02:21.5]} 14.
O-O-O {[%clk 0:02:37.1]} 14... a5 {[%clk 0:02:16.3]} 15. e4 {[%clk 0:02:19.3]}
15... Bg6 {[%clk 0:02:15.6]} 16. Qd3 {[%clk 0:02:02.4]} 16... a4 {[%clk
0:02:11]} 17. b4 {[%clk 0:01:59.3]} 17... Nd7 {[%clk 0:02:09.4]} 18. Qc3 {[%clk
0:01:52.7]} 18... Nf4 {[%clk 0:01:56.1]} 19. Rg1 {[%clk 0:01:47.3]} 19... Rc8
{[%clk 0:01:43.4]} 20. Kb2 {[%clk 0:01:30.9]} 20... Nf6 {[%clk 0:01:32.1]} 21.
e5 {[%clk 0:01:18.1]} 21... N6h5 {[%clk 0:01:31.9]} 22. Ne3 {[%clk 0:01:15]}
22... f6 {[%clk 0:01:29.9]} 23. Ng4 {[%clk 0:01:10.6]} 23... fxe5 {[%clk
0:01:08.7]} 24. Nxe5 {[%clk 0:01:09.5]} 24... Qh4 {[%clk 0:01:09.2]} 25. Nxg6
{[%clk 0:01:00]} 25... hxg6 {[%clk 0:01:08.7]} 26. Bd3 {[%clk 0:00:51.5]} 26...
Re3 {[%clk 0:01:04.5]} 27. Nf1 {[%clk 0:00:48.4]} 27... Rxd3 {[%clk 0:01:01.7]}
28. Rxd3 {[%clk 0:00:47.1]} 28... Nxd3+ {[%clk 0:01:01.1]} 29. Ka3 {[%clk
0:00:35.1]} 29... Nhf4 {[%clk 0:00:57.7]} 30. Rg4 {[%clk 0:00:29.8]} 30... Qf2
{[%clk 0:00:57]} 31. Ne3 {[%clk 0:00:28.3]} 31... Qxe3 {[%clk 0:00:56.5]} 0-1

[Event "Early-Titled-Tuesday-Blitz-February-27-2024"]
[Site "Chess.com"]
[Date "2024.02.27"]
[Round "1"]
[White "Sina_Movahed"]
[Black "ATM622"]
[Result "1-0"]
[WhiteElo "2930"]
[BlackElo "2510"]
[TimeControl "180+1"]
[EndTime "8:06:06 PST"]
[Termination "Sina_Movahed won by checkmate"]

1. e4 {[%clk 0:03:00.9]} 1... c6 {[%clk 0:02:59.4]} 2. d4 {[%clk 0:03:00.5]}
2... d5 {[%clk 0:03:00]} 3. e5 {[%clk 0:03:01.2]} 3... Bf5 {[%clk 0:02:57.5]} 4.
h4 {[%clk 0:03:01.7]} 4... h5 {[%clk 0:02:57.5]} 5. Bg5 {[%clk 0:03:01]} 5...
Qb6 {[%clk 0:02:56.3]} 6. Bd3 {[%clk 0:03:00.6]} 6... Bxd3 {[%clk 0:02:54.7]} 7.
Qxd3 {[%clk 0:03:00.5]} 7... Qxb2 {[%clk 0:02:54.4]} 8. e6 {[%clk 0:03:00.2]}
8... Na6 {[%clk 0:02:44.4]} 9. exf7+ {[%clk 0:02:41.6]} 9... Kxf7 {[%clk
0:02:37.9]} 10. Nf3 {[%clk 0:02:42.2]} 10... Nf6 {[%clk 0:02:25.7]} 11. Ne5+
{[%clk 0:02:40.8]} 11... Kg8 {[%clk 0:02:25.6]} 12. O-O {[%clk 0:01:14.2]} 12...
Ne4 {[%clk 0:02:14.2]} 13. Nd2 {[%clk 0:00:35.2]} 13... Nb4 {[%clk 0:02:09.5]}
14. Qf3 {[%clk 0:00:34.4]} 14... Qxd4 {[%clk 0:01:45.2]} 15. Qf7+ {[%clk
0:00:22.7]} 15... Kh7 {[%clk 0:01:44.8]} 16. Ndf3 {[%clk 0:00:22.7]} 16... Qc5
{[%clk 0:01:20.6]} 17. Qxh5+ {[%clk 0:00:17.7]} 17... Kg8 {[%clk 0:01:19.5]} 18.
Qf7+ {[%clk 0:00:18.6]} 18... Kh7 {[%clk 0:01:19.5]} 19. Bf4 {[%clk 0:00:16]}
19... Qd6 {[%clk 0:01:14.2]} 20. Ng5+ {[%clk 0:00:16.4]} 20... Nxg5 {[%clk
0:01:14.1]} 21. hxg5 {[%clk 0:00:17.3]} 21... Rg8 {[%clk 0:00:48.3]} 22. Qh5+
{[%clk 0:00:17.2]} 22... Qh6 {[%clk 0:00:48.3]} 23. g6+ {[%clk 0:00:18.1]} 23...
Kh8 {[%clk 0:00:47.8]} 24. Nf7# {[%clk 0:00:19]} 1-0

[Event "Early-Titled-Tuesday-Blitz-February-27-2024"]
[Site "Chess.com"]
[Date "2024.02.27"]
[Round "1"]
[White "Kopytkin"]
[Black "Batica1984"]
[Result "1-0"]
[WhiteElo "2459"]
[BlackElo "2760"]
[TimeControl "180+1"]
[EndTime "8:06:06 PST"]
[Termination "Kopytkin won by resignation"]

1. d4 {[%clk 0:03:00.9]} 1... Nf6 {[%clk 0:02:58.3]} 2. Bg5 {[%clk 0:03:00.8]}
2... e6 {[%clk 0:02:56.1]} 3. Nd2 {[%clk 0:03:00.2]} 3... h6 {[%clk 0:02:53.7]}
4. Bh4 {[%clk 0:02:59.8]} 4... d5 {[%clk 0:02:47.5]} 5. e3 {[%clk 0:02:59.9]}
5... Be7 {[%clk 0:02:44.6]} 6. Bd3 {[%clk 0:02:59.6]} 6... c5 {[%clk 0:02:43.5]}
7. c3 {[%clk 0:02:59.4]} 7... b6 {[%clk 0:02:40.2]} 8. Qe2 {[%clk 0:02:57.9]}
8... Bb7 {[%clk 0:02:39.1]} 9. Bxf6 {[%clk 0:02:58.1]} 9... Bxf6 {[%clk
0:02:38.3]} 10. f4 {[%clk 0:02:58.4]} 10... Nd7 {[%clk 0:02:25.3]} 11. Ngf3
{[%clk 0:02:57.8]} 11... a6 {[%clk 0:02:20]} 12. O-O {[%clk 0:02:55.4]} 12...
O-O {[%clk 0:02:18.9]} 13. Ne5 {[%clk 0:02:52.8]} 13... Be7 {[%clk 0:02:04.5]}
14. Rf3 {[%clk 0:02:43.9]} 14... Nf6 {[%clk 0:02:04.2]} 15. g4 {[%clk
0:02:24.2]} 15... Ne4 {[%clk 0:02:02.5]} 16. Rh3 {[%clk 0:02:24.3]} 16... f6
{[%clk 0:01:32]} 17. Ng6 {[%clk 0:02:21.9]} 17... Rf7 {[%clk 0:01:32.3]} 18. Qg2
{[%clk 0:02:17]} 18... Kh7 {[%clk 0:01:23.8]} 19. Nxe7 {[%clk 0:02:11]} 19...
Rxe7 {[%clk 0:01:18.8]} 20. Nxe4 {[%clk 0:01:57.8]} 20... dxe4 {[%clk
0:01:18.4]} 21. Bxe4+ {[%clk 0:01:58.4]} 21... Bxe4 {[%clk 0:01:18.7]} 22. Qxe4+
{[%clk 0:01:59.3]} 22... Kg8 {[%clk 0:01:16]} 23. g5 {[%clk 0:01:49.6]} 23... f5
{[%clk 0:01:01.3]} 24. Qg2 {[%clk 0:01:39.7]} 24... Kh7 {[%clk 0:00:55.8]} 25.
Kf2 {[%clk 0:01:29.2]} 25... cxd4 {[%clk 0:00:54.3]} 26. exd4 {[%clk 0:01:27.8]}
26... Qb8 {[%clk 0:00:53.6]} 27. gxh6 {[%clk 0:00:53.9]} 27... Qxf4+ {[%clk
0:00:47.5]} 28. Kg1 {[%clk 0:00:53.9]} 28... Qg4 {[%clk 0:00:44.8]} 29. Rg3
{[%clk 0:00:51.9]} 1-0